Cogmind - Beta 16 @@@ ROGUE MODE // 2026.01.09 @ 23:41:19 Player: Maulwurf Result: Destroyed by as-79206 with Assembled Maul Performance ------------- Evolutions (0) 0 Regions Visited (2) 400 Robots Destroyed (21) 105 Value Destroyed (539) 539 Prototype IDs (0) 0 Alien Tech Used (0) 0 Bonus (0) 0 TOTAL SCORE: 1044 Bonus ------- None Cogmind --------- Core Integrity 0/250 Matter 300/300 Energy 100/100 System Corruption 13% Temperature Cool (0) Movement Treading (240) Ox1 Location -10/Mines Parts ------- > --- POWER (1) -------- (None) > --- PROPULSION (2) --- Light Treads > --- UTILITY (2) ------ Large Storage Unit > --- WEAPON (2) ------- Particle Gun Assault Rifle > --- INVENTORY (15) --- Ion Engine Light Treads Wheel Wheel Large Matter Pod (150) Visual Processing Unit Improved Terrain Scanner Terrain Scan Processor Medium Armor Plating Hacking Suite Particle Cannon Particle Cannon Particle Cannon Assault Rifle Mining Laser Peak State ------------ > --- POWER ------------ Light Nuclear Core > --- PROPULSION ------- Light Treads Light Treads > --- UTILITY ---------- Large Storage Unit Medium Armor Plating > --- WEAPON ----------- Particle Gun Assault Rifle > --- INVENTORY -------- Ion Engine Light Treads Wheel Wheel Large Matter Pod Visual Processing Unit Improved Terrain Scanner Terrain Scan Processor Medium Armor Plating Hacking Suite Particle Cannon Particle Cannon Particle Cannon Assault Rifle Mining Laser [Rating: 13] Favorites ----------- Power Ion Engine Engine Ion Engine Power Core Light Nuclear Core Propulsion Light Treads Treads Light Treads Utility Large Storage Unit Device Seismic Detector Storage Large Storage Unit Protection Medium Armor Plating Weapon Assault Rifle Energy Gun Particle Gun Energy Cannon Particle Cannon Ballistic Gun Assault Rifle Build | -11 -10 -10 ------- Run | Yrd Mat Min Slots Evolved . | . . . Power . | . . . Propulsion . | . . . Utility . | . . . Weapon . | . . . Parts Attached 15 | 7 4 4 Power 4 | 1 1 2 Engine 2 | 1 . 1 Core 2 | . 1 1 Reactor . | . . . Propulsion 3 | 2 1 . Treads 3 | 2 1 . Leg . | . . . Wheel . | . . . Hover . | . . . Flight . | . . . Utility 4 | 2 1 1 Device 1 | 1 . . Storage 2 | 1 1 . Processor . | . . . Hackware . | . . . Protection 1 | . . 1 Artifact . | . . . Weapon 4 | 2 1 1 Energy Gun 1 | . . 1 Energy Cannon 1 | . 1 . Ballistic Gun 2 | 2 . . Ballistic Cannon . | . . . Launcher . | . . . Special Weapon . | . . . Impact Weapon . | . . . Slashing Weapon . | . . . Piercing Weapon . | . . . Special Melee Weapon . | . . . Unidentified Prototypes . | . . . Parts Lost 5 | . . 5 Power 2 | . . 2 Propulsion 1 | . . 1 Utility 2 | . . 2 Weapon . | . . . Highest Loss Streak 3 | . . 3 To Critical Strikes . | . . . Average Backups 12 | 3 12 14 Power . | . 1 . Propulsion 2 | 1 2 3 Utility 5 | . 4 6 Weapon 3 | 1 3 4 Tool/Special . | . . . Unused Backups 13 | . 2 11 Power . | . . . Propulsion 2 | . . 2 Utility 6 | . . 6 Weapon 5 | . 2 3 Tool/Special . | . . . Average Slot Usage (%) 99 | . 100 98 Engine 7 | . 7 5 Core 6 | . 6 7 Treads 27 | . 28 27 Device 11 | . 14 7 Storage 14 | . 14 14 Protection 2 | . . 5 Energy Gun 2 | . . 5 Energy Cannon 6 | . 9 2 Ballistic Gun 19 | . 18 19 Peak Build Rating 13 | 7 12 13 Average Rating 10 | 5 10 11 On Entrance 6 | . 7 12 Avg Prop Armor Cover (%) . | . . . Naked Turns . | . . . Heaviest Build 37 | 15 32 37 Greatest Support 40 | 40 40 40 Greatest Overweight (x) 2 | 2 . 1 Average Overweight (x) . | . . . Largest Inventory Capacity 15 | 8 15 15 Average Capacity 13 | 7 14 15 Most Carried 15 | 6 15 15 Average Carried 12 | 3 12 14 Final Capacity 15 | 8 15 15 Final Carried 15 | 6 15 15 Class Distribution -------------------- 100% | Mutant Dominant Class ---------------- Mutant | -10/Materials Mutant | -10/Mines Resources | -11 -10 -10 ----------- Run | Yrd Mat Min Matter Collected 734 | 294 284 156 Remotely . | . . . Salvage Created 570 | 41 320 209 Parts 36 | 6 23 7 Haulers Intercepted . | . . . Recyclers Shooed 1 | . 1 . Parts Field Recycled . | . . . Retrieved Matter . | . . . Parts Self-Destructed . | . . . Prevented . | . . . Parts Restored . | . . . Kills | -11 -10 -10 ------- Run | Yrd Mat Min Combat Hostiles Destroyed 16 | . 10 6 Guns 13 | . 8 5 Cannons 3 | . 2 1 Classes Destroyed 6 | 1 4 1 Tunneler 2 | 2 . . Operator 1 | . 1 . Watcher 2 | . 2 . Swarmer 6 | . 6 . Grunt 8 | . 4 4 Demolisher 2 | . . 2 Best Kill Streak 4 | 1 4 2 Combat Bots Only 3 | . 3 2 Max Kills in Single Turn 2 | 1 2 1 Gunslinging 1 | . 1 . Exploded . | . . . Melee . | . . . Uniques/NPCs Destroyed . | . . . Combat | -11 -10 -10 -------- Run | Yrd Mat Min Hostile Shots Fired 93 | . 42 51 Missed 15 | . 5 10 Hits 78 | . 37 41 Melee 6 | . . 6 Projectile 72 | . 37 35 AOE 7 | . . 7 Critical Strikes 2 | . 1 1 Damage Taken 1169 | . 341 828 Core 263 | . 70 193 Absorbed by Shields . | . . . Core Remaining (%) 100 | 100 . . Volleys Fired 54 | 4 25 25 Largest 2 | 2 2 2 Hottest 88 | 40 88 88 Shots Fired 108 | 8 50 50 Gun 88 | 8 36 44 Cannon 20 | . 14 6 Launcher . | . . . Special . | . . . Kinetic 81 | 8 36 37 Thermal 27 | . 14 13 Explosive . | . . . Electromagnetic . | . . . Robot Hit Streak 9 | 2 7 9 Robot Miss Streak 2 | 1 2 2 Penetration Max . | . . . Secondary Targets 2 | . 1 1 Max Gunslinging Chain 1 | . 1 1 Shots Hit Robots 68 | 4 29 35 Core Hits 35 | 2 17 16 Critical Kills . | . . . Critical Parts Destroyed . | . . . Critical Strikes 1 | . . 1 Burn 1 | . . 1 Melee Attacks . | . . . Impact . | . . . Slashing . | . . . Piercing . | . . . Sneak Attacks . | . . . Combat Hostiles . | . . . Follow-up Attacks . | . . . Damage Inflicted 1018 | 48 482 488 Guns 705 | 48 254 403 Cannons 310 | . 228 82 Explosions . | . . . Melee . | . . . Ramming 3 | . . 3 Kinetic 628 | 48 254 326 Thermal 387 | . 228 159 Explosive . | . . . Electromagnetic . | . . . Impact . | . . . Slashing . | . . . Piercing . | . . . Highest Corruption 13 | . . 13 Average Corruption 10 | . . 10 Corruption Purged . | . . . Corruption Blocked . | . . . Overload Shots . | . . . Overflow Damage 11 | . 11 . Projectiles 11 | . 11 . Explosions . | . . . Melee . | . . . Knockbacks . | . . . Impact . | . . . Kinetic . | . . . Secondary . | . . . Self-Inflicted Damage . | . . . Shots . | . . . Rammed 1 | . . 1 Targets Rammed 1 | . . 1 Kicked . | . . . Crushed . | . . . Highest Temperature 315 | . 207 315 Average Temperature 102 | . 83 118 Received Heat Transfer 264 | . 51 213 Siege Activations . | . . . Martial Activations . | . . . Shielding Activations . | . . . Robots Disrupted . | . . . Combat Hostiles . | . . . Robots Corrupted . | . . . Combat Hostiles . | . . . Parts Fried . | . . . Impact Corruptions . | . . . Robots Melted . | . . . Combat Hostiles . | . . . Parts Melted 2 | . 1 1 Heat Transferred 814 | . 407 407 Parts Sabotaged . | . . . Parts Stolen . | . . . Parts Stripped . | . . . Power Chain Reactions . | . . . Alert | -11 -10 -10 ------- Run | Yrd Mat Min Maximum Alert Level . | . . . Low Security (%) 100 | 100 100 100 Level 1 . | . . . Level 2 . | . . . Level 3 . | . . . Level 4 . | . . . Level 5 . | . . . High Security . | . . . Max Security . | . . . Peak Influence 81 | 5 81 42 Initial . | . . . Average 18 | . 27 9 Influence Increases 433 | 10 273 150 Destroy 0b10 Robot/C 320 | . 200 120 Destroy 0b10 Robot/NC 25 | 10 15 . Destroy Leader 74 | . 44 30 Successful Hack 12 | . 12 . Destroy Structure 2 | . 2 . Influence Decreases 433 | 10 273 150 Time Decay 403 | 10 273 120 Lost Part 30 | . . 30 Squads Dispatched 2 | . 2 . Investigation 1 | . 1 . Extermination . | . . . Reinforcement 1 | . 1 . Assault . | . . . Garrison . | . . . Intercept . | . . . Searches Triggered . | . . . Construction Impeded . | . . . Haulers Reinforced . | . . . Active Scanning Responses . | . . . Cargo Convoy Interrupts . | . . . Stealth | -11 -10 -10 --------- Run | Yrd Mat Min Distress Signals 3 | . 3 . Communications Jammed . | . . . Distress Signals . | . . . Times Spotted 28 | . 15 13 Peak Tracking Total 6 | . 5 6 Tactical Retreats . | . . . Traps | -11 -10 -10 ------- Run | Yrd Mat Min Traps Triggered 1 | . 1 . Indirectly . | . . . Trap Hack Attempts . | . . . Triggered . | . . . Disarmed . | . . . Reprogrammed . | . . . Reused . | . . . Traps Extracted . | . . . Installed . | . . . Triggered . | . . . Machines | -11 -10 -10 ---------- Run | Yrd Mat Min Machines Disabled . | . . . Max in Single Turn . | . . . Machines Repaired . | . . . Machines Dismantled . | . . . Machines Sabotaged . | . . . Overloaded Fab Kills . | . . . Hacking | -11 -10 -10 --------- Run | Yrd Mat Min Machines Accessed 4 | . 4 . Terminals 4 | . 4 . Fabricators . | . . . Repair Stations . | . . . Recycling Units . | . . . Scanalyzers . | . . . Garrison Access . | . . . Total Hacks 11 | . 11 . Successful 4 | . 4 . Failed 7 | . 7 . Catastrophic 4 | . 4 . Database Lockouts . | . . . Manual 8 | . 8 . Terminals 11 | . 11 . Fabricators . | . . . Repair Stations . | . . . Recycling Units . | . . . Scanalyzers . | . . . Garrison Access . | . . . Terminal Hacks 3 | . 3 . Record 1 | . 1 . Branch Access Points 1 | . 1 . Locate Traps 1 | . 1 . Fabricator Hacks . | . . . Repair Station Hacks . | . . . Recycling Unit Hacks . | . . . Scanalyzer . | . . . Garrison Access Hacks . | . . . Unauthorized Hacks 1 | . 1 . Terminals 1 | . 1 . Assimilate 1 | . 1 . Fabricators . | . . . Repair Stations . | . . . Recycling Units . | . . . Scanalyzers . | . . . Garrison Access . | . . . Data Cores Recovered . | . . . Used . | . . . Hacking Detections 3 | . 3 . Full Trace Events 2 | . 2 . Feedback Events . | . . . Feedback Blocked . | . . . Robot Schematics Acquired . | . . . Robots Built . | . . . Authchips . | . . . Time . | . . . Total Robot Build Rating . | . . . Part Schematics Acquired . | . . . Parts Built . | . . . Authchips . | . . . Time . | . . . Total Part Build Rating . | . . . Part Studies Acquired . | . . . Parts Repaired . | . . . Time . | . . . Parts Recycled . | . . . Recycled Matter . | . . . Retrieved Matter . | . . . Retrieved Components . | . . . Parts Scanalyzed . | . . . Part Schematics Acquired . | . . . Parts Damaged . | . . . Bothacking | -11 -10 -10 ------------ Run | Yrd Mat Min Used RIF Installer . | . . . Robots Hacked . | . . . Non-combat . | . . . Combat . | . . . Robot Hacks Applied . | . . . Relay Couplers Released . | . . . Fabnet Peak Effective % . | . . . Robots Rewired . | . . . Allies Hacked . | . . . Hacks Repelled . | . . . Allies | -11 -10 -10 -------- Run | Yrd Mat Min Total Allies . | . . . Largest Group . | . . . Highest-Rated Group . | . . . Highest-Rated Ally . | . . . Total Orders . | . . . Ally Attacks . | . . . Total Damage . | . . . Kills . | . . . Allies Corrupted . | . . . Allies Melted . | . . . Intel | -11 -10 -10 ------- Run | Yrd Mat Min Active Infowar (turns) 1135 | 12 821 302 Seismic 1135 | 12 821 302 Robot Analysis Total . | . . . Derelict Logs Recovered 1 | . . 1 Drone Launches . | . . . Drone Recoveries . | . . . Exploration | -11 -10 -10 ------------- Run | Yrd Mat Min Turns Passed 1471 | 112 821 538 Spaces Moved 692 | 59 396 237 Core 14 | 14 . . Treads 678 | 45 396 237 Legs . | . . . Wheels . | . . . Hover . | . . . Flight . | . . . Fastest Speed 50 | 50 160 160 Average Speed 158 | 138 160 160 Slowest Speed 240 | 160 160 240 Overloaded Moves . | . . . Propulsion Burnouts . | . . . Robots Hopped . | . . . Potential Cave-ins . | . . . Cave-ins Triggered . | . . . Exploration Rate (%) 28 | 5 52 28 Regions Visited 2 Branch Regions 1 Pre-discovered Areas . | . . . Known Exits Taken 1 | . 1 . Unknown Exits Taken 1 | 1 . . Scrap Searched 1 | . . 1 Spaces Dug . | . . . Terrain Destroyed . | . . . Melee . | . . . Projectile . | . . . AOE . | . . . Terrain Rammed . | . . . Walls Destroyed . | . . . Machines Disabled . | . . . Actions | -11 -10 -10 --------- Run | Yrd Mat Min Total 954 | 78 534 342 Wait 171 | 2 96 73 Move 690 | 58 395 237 Hop . | . . . Pick Up 17 | 7 10 . Fast Attach 8 | 6 1 1 Attach 3 | 1 . 2 Detach 2 | . 1 1 Swap 5 | . 3 2 Drop 3 | . 3 . Fire 54 | 4 25 25 Melee . | . . . Ram . | . . . Kick . | . . . Crush 1 | . . 1 Escape Stasis . | . . . Rewire . | . . . Trap . | . . . Miscellaneous . | . . . Route ------- -11/Scrapyard -10/Materials -10/Mines (discovered 1 exit: [*Mat]) History --------- Turn | Location | Event 68 | -11/Scrapyard | Discovered new exit (range 12) 113 | -11/Scrapyard | Entered Materials 306 | -10/Materials | Build established: Mutant 597 | -10/Materials | Identified exit to Mines 934 | -10/Materials | Entered Mines 946 | -10/Mines | Met a Derelict bent on vengeance 949 | -10/Mines | Learned Materials trap positions 973 | -10/Mines | Discovered new exit (range 14) 1235 | -10/Mines | Core integrity fell below 50% 1355 | -10/Mines | Assembled infested the area 1465 | -10/Mines | System corruption reached 10% 1471 | -10/Mines | Core integrity fell below 20% 1472 | -10/Mines | Destroyed by as-79206 with Assembled Maul Last Messages --------------- 01436_ U-05 Engineer builds a Wall. 01440_ U-05 Engineer lays Concrete. 01441_ U-05 Engineer builds a Wall. 01441_ U-05 Engineer lays Concrete. 01442_ U-05 Engineer builds a Wall. 01449_ U-05 Engineer lays Concrete. 01450_ Slammed into U-05 Engineer. 01451_ U-05 Engineer builds a Wall. 01457_ as-79206 sneak attacks. 01457_ U-05 Engineer destroyed. 01461_ Lgt. Nuclear Core destroyed. 01461_ System corrupted by crushing effect (+5). 01464_ Lgt. Treads destroyed. 01464_ Med. Armor Plating destroyed. 01464_ System corrupted by crushing effect (+3). 01464_ System corrupted by crushing effect (+5). 01467_ R-06 Scavenger system corrupted by crushing effect. 01468_ R-06 Scavenger system terminally corrupted. Map ----- +----------------------------------------------------+ | ?????????????????????????????????????????????????? | | ?????????????????????????????????????????????????? | | ?????????????????????????????????????????????????? | | ?????????????????????????????? #?????????????????? | | ????????????????????????????? #?????????????????? | | ?????????????????????????????$ #?????????????????? | | ????????????????????????????? #?????????????????? | | ?????????????????????????#### #?????????????????? | | ????????????????????????## # #???????#?????????? | | ????????????????????????# = ##???? #?????????? | | ???????????????????????##! ##?? ##????????? | | ???????????????????????# ## #????????? | | ??????????????????????## ????????? | | ????????????????????### #???????? | | ????????????????????? ??????????? | | ??????????????????????? #?????????????? | | ????????????????????????# !! #??????????????? | | ????????????????????????# a #???????????????? | | ????????????????????????# #######???????????????? | | ???????????????????????##% ###???????????????????? | | ??????????????????????###%a# ##??????????????????? | | ?????????????????????## #%a# ###?????????????????? | | ?????????????????????# #!a# #?????????????????? | | ?????????????????????# #!a# #?????????????????? | | ??????????????????##### #aa### #?????????????????? | | ?????????????????## # #@ # # #?????????????????? | | ????????????????## # # #?????????????????? | | ???????????????## ## # ##?????????????????? | | ????????????#### % ####??????????????????? | | ???????????## ##### #????????????????????? | | ???????????# ##???## ?????????????? | | ??????????## % ##?????## #?????????? | | ??????????# ##???????## ### ??????????? | | ??????????# ##?????????####??? ??????????? | | ?????????## #??????????????????# ???????????? | | ????????## #????????????????????####??????????? | | ????????# < ##???????????????####??????????????? | | ????????# ##?????????????## #??????######## | | ????????## ####??????????# #?????# | | ?????????## ##?????????# ###### """ "" | | ??????????#### ##?????????# # """ "" | | ?????????????## #########????# """ "" | | ??????????????## #????## | | ???????????????## #?????## # """ "" | | ????????????????## #### #??????## #### """ "" | | ?????????????????## ##??# ######### #### """ "" | | ??????????????????#####???# =/= ! % | | ??????????????????????????# %! = | | ??????????????????????????################# | | ??????????????????????????????????????????######## | +----------------------------------------------------+ Best States ------------- Heat Dissipation 25 Energy Generation 14 Energy Capacity 250 Matter Stores 300 Matter Capacity 300 Sight Range 16 Terrain Scan Density 10 Armor Coverage 225 Evasion (%) 40 Recoil Reduction 2 Item Schematics ----------------- None Robot Schematics ------------------ None Fabricated ------------ Nothing Repaired ---------- Nothing Studied --------- None Alien Tech Used ----------------- None Achievements -------------- None Challenges ------------ None Game ------ Seed CompactZipPick Manual? 0 Play Time 00:16:39 Cumulative 21.4 hours Start 2026.01.09 @ 23:16:17 End 2026.01.09 @ 23:41:19 Sessions 1 Manual Loads 0 Difficulty Rogue Special Mode None Game No. 23 Rogue 23 Adventurer 0 Explorer 0 Win Type - Total 0 Types 0/0/0/0/0/0/0/0/0/0 Lore% 21 Gallery% 25 Achievement% 30 Wizard Run 0 Options --------- Layout 1 ASCII 0 Keyboard 1 Movement Numpad Keybinds 0 Fullscreen 1 Font 24/Smallcaps Map View 50x35 Zoom Use 0% Tactical HUD 1 Map Filters NONE Filters NONE Steam 1 RUN: 307ed58b-e569-43ba-ad35-565a2c905dc8